Workbook

Sheet 予算の概要
B2: 予算の概要レポート | I2: =YEAR(TODAY()) -> 2019
B3: 会社名
B4: 灰色のセルは自動的に計算され、通常は変更する必要がありません。
B5: 損益の概要 | C5: 5 月実績 | D5: 5 月目標 | E5: 月別差異 | F5: 年度累計実績 | G5: 年度累計目標 | H5: 年度累計差異 | I5: メモ
B6: 収益 | C6: ¥1,200,000.00 | D6: ¥1,100,000.00 | E6: =C6-D6 -> ¥100,000.00 | F6: ¥6,200,000.00 | G6: ¥6,000,000.00 | H6: =F6-G6 -> ¥200,000.00 | I6: 西部での契約増加により、5 月の収益目標を 9% 超えました。
B7: 粗利益 | C7: ¥150,000.00 | D7: ¥160,000.00 | E7: =C7-D7 -> (¥10,000.00) | F7: ¥640,000.00 | G7: ¥750,000.00 | H7: =F7-G7 -> (¥110,000.00)
B8: 粗利益率 (%) | C8: =IF(C6=0,0,C7/C6) -> 12.5% | D8: =IF(D6=0,0,D7/D6) -> 14.5% | E8: =C8-D8 -> -2.0% | F8: =IF(F6=0,0,F7/F6) -> 10.3% | G8: =IF(G6=0,0,G7/G6) -> 12.5% | H8: =F8-G8 -> -2.2%
B9: 新製品の売上 | C9: ¥200,000.00 | D9: ¥150,000.00 | E9: =C9-D9 -> ¥50,000.00 | F9: ¥900,000.00 | G9: ¥750,000.00 | H9: =F9-G9 -> ¥150,000.00
B10: 地域売上明細
B11: 北東部 | C11: ¥400,000.00 | D11: ¥400,000.00 | E11: =C11-D11 -> ¥0.00 | F11: ¥2,200,000.00 | G11: ¥2,000,000.00 | H11: =F11-G11 -> ¥200,000.00
B12: 中央部 | C12: ¥400,000.00 | D12: ¥400,000.00 | E12: =C12-D12 -> ¥0.00 | F12: ¥2,400,000.00 | G12: ¥2,000,000.00 | H12: =F12-G12 -> ¥400,000.00
B13: 西部 | C13: ¥400,000.00 | D13: ¥300,000.00 | E13: =C13-D13 -> ¥100,000.00 | F13: ¥1,600,000.00 | G13: ¥2,000,000.00 | H13: =F13-G13 -> (¥400,000.00)
B14: 支出と利益:
B15: SG&A 費用 | C15: ¥100,000.00 | D15: ¥120,000.00 | E15: =D15-C15 -> ¥20,000.00 | F15: ¥500,000.00 | G15: ¥600,000.00 | H15: =G15-F15 -> ¥100,000.00
B16: 税引前営業利益 (損失) | C16: ¥50,000.00 | D16: ¥40,000.00 | E16: =C16-D16 -> ¥10,000.00 | F16: ¥140,000.00 | G16: ¥150,000.00 | H16: =F16-G16 -> (¥10,000.00)
B17: 営業利益 | C17: =IF(C6=0,0,C16/C6) -> 4% | D17: =IF(D6=0,0,D16/D6) -> 4% | E17: =C17-D17 -> 1% | F17: =IF(F6=0,0,F16/F6) -> 2% | G17: =IF(G6=0,0,G16/G6) -> 3% | H17: =F17-G17 -> -0%
B19: 貸借対照表概要 | C19: 5 月実績 | D19: 5 月目標 | E19: 月別差異 | F19: 年度累計実績 | G19: 年度累計目標 | H19: 年度累計差異 | I19: メモ
B20: 期末キャッシュ フロー | C20: ¥35,000.00 | D20: ¥50,000.00 | E20: =C20-D20 -> (¥15,000.00) | F20: ¥35,000.00 | G20: ¥50,000.00 | H20: =F20-G20 -> (¥15,000.00) | I20: キャッシュ フローの差異は、5 月 8 日の会社名との訴訟における金銭による和解が原因でした。
B21: 売掛金 | C21: ¥20,000.00 | D21: ¥22,000.00 | E21: (¥2,000.00) | F21: ¥20,000.00 | G21: ¥22,000.00 | H21: (¥2,000.00)
B22: 在庫 | C22: ¥25,000.00 | D22: ¥30,000.00 | E22: (¥5,000.00) | F22: ¥25,000.00 | G22: ¥30,000.00 | H22: (¥5,000.00)
B23: 流動資産の合計 | C23: ¥75,000.00 | D23: ¥90,000.00 | E23: (¥15,000.00) | F23: ¥75,000.00 | G23: ¥90,000.00 | H23: (¥15,000.00)
B24: 借入契約条項に必要な資産 | C24: ¥25,000.00 | D24: ¥25,000.00 | E24: ¥0.00 | F24: ¥25,000.00 | G24: ¥25,000.00 | H24: ¥0.00
B25: 借入契約条項バッファー | C25: =C23-C24 -> ¥50,000.00 | D25: =D23-D24 -> ¥65,000.00 | E25: (¥15,000.00) | F25: =F23-F24 -> ¥50,000.00 | G25: =G23-G24 -> ¥65,000.00 | H25: (¥15,000.00)
B26: その他の貸借対照表アイテム:
B27: 有形固定資産 | C27: ¥80,000.00 | D27: ¥78,000.00 | E27: =C27-D27 -> ¥2,000.00 | F27: ¥80,000.00 | G27: ¥78,000.00 | H27: =F27-G27 -> ¥2,000.00 | I27: 工場 B の新しいバースト マシンの購入による差異。
B28: 買掛金 | C28: ¥60,000.00 | D28: ¥60,000.00 | E28: =D28-C28 -> ¥0.00 | F28: ¥60,000.00 | G28: ¥60,000.00 | H28: =F28-G28 -> ¥0.00
B29: 固定負債 | C29: ¥30,000.00 | D29: ¥31,000.00 | E29: =D29-C29 -> ¥1,000.00 | F29: ¥30,000.00 | G29: ¥31,000.00 | H29: =G29-F29 -> ¥1,000.00
B30: 自己資本 | C30: ¥300,000.00 | D30: ¥297,500.00 | E30: =C30-D30 -> ¥2,500.00 | F30: ¥300,000.00 | G30: ¥297,500.00 | H30: =F30-G30 -> ¥2,500.00
B32: 営業指標の概要 | C32: 5 月実績 | D32: 5 月目標 | E32: 月別差異 | F32: 年度累計実績 | G32: 年度累計目標 | H32: 年度累計差異 | I32: メモ
B33: 生産された 1,000 ウィジェットあたりの問題の数 | C33: 2.3 | D33: 1.0 | E33: =D33-C33 -> (1.3) | F33: 1.5 | G33: 1.0 | H33: =F33-G33 -> 0.5 | I33: 品質の問題は、生産ライン 3 に塗布された不適切な塗装が原因でした。マネージャーが新しい発見的コントロールを実装しました。
B34: 生産能力 (月単位) | C34: 200,000 | D34: 220,000 | E34: =C34-D34 -> (20,000) | F34: 1,100,000 | G34: 1,150,000 | H34: =F34-G34 -> (50,000)
B35: 売掛金回収期間 | C35: 35 | D35: 25 | E35: =D35-C35 -> (10) | F35: 33 | G35: 25 | H35: =G35-F35 -> (8)
B36: 新しい注文の数 | C36: 19 | D36: 15 | E36: =C36-D36 -> 4 | F36: 83 | G36: 75 | H36: =F36-G36 -> 8
B38: 競争力の概要 | C38: 会社のプロフィール | D38: 競合企業 1 | E38: 競合企業 2 | F38: 競合企業 3 | G38: 競合企業 4 | H38: その他 | I38: メモ
B39: 市場シェア | C39: 20.00% | D39: 25.00% | E39: 15.00% | F39: 5.00% | G39: 15.00% | H39: 20.00% | I39: 新製品の売上増加により市場占有率が向上しました。
B40: 収益 (年度累計) | C40: =F6 -> ¥6,200,000.00 | D40: ¥7,000,000.00 | E40: ¥4,000,000.00 | F40: ¥1,500,000.00 | G40: ¥4,000,000.00 | H40: ¥6,000,000.00
B41: 新製品発売 (年度累計) | C41: ¥900,000.00 | D41: ¥500,000.00 | E41: ¥0.00 | F41: ¥100,000.00 | G41: ¥500,000.00 | H41: ¥0.00
B42: 外勤販売員の数 (推定) | C42: 15 | D42: 20 | E42: 15 | F42: 10 | G42: 15

Sheet 損益グラフ
B2: 損益の概要グラフ | I2: =予算の概要!I2 -> 2019
B3: =予算の概要!B3 -> 会社名
B5: このセルには、月および年の実績と目標を示す棒グラフが表示されます。

Sheet 残高グラフ
B2: 貸借対照表概要グラフ | I2: =予算の概要!I2 -> 2019
B3: =予算の概要!B3 -> 会社名
B5: このセルには、月単位の実績と目標を示す棒グラフが表示されます。
